Workbook

Sheet Pk Demand
A1: MDU Int. Sys. Average 12 Mo. Peak
A2: Projected 2014
A5: 2014 | C5: Pk Demand 1/
A6: Jan | C6: 548400
A7: Feb | C7: 527500
A8: Mar | C8: 486900
A9: Apr | C9: 429600
A10: May | C10: 418200
A11: Jun | C11: 544000
A12: Jul | C12: 606900
A13: Aug | C13: 570700
A14: Sep | C14: 486100
A15: Oct | C15: 403000
A16: Nov | C16: 535700
A17: Dec | C17: 612600
A18: Average | C18: =AVERAGE(C6:C17) -> 514133.3333
A21: 1/ Electric Load Forecast utilized in the North Dakota
A22: 2013 Integrated Resource Plan. Volume II,
A23: Attachment A, Page G-2.

Sheet Plant & Depr
A1: Montana-Dakota Utilities Co.
A2: Plant & Depreciation by Function
B4: Dec 2013 | C4: Jan 2014 | D4: Feb 2014 | E4: Mar 2014 | F4: Apr 2014 | G4: May 2014 | H4: Jun 2014 | I4: Jul 2014 | J4: Aug 2014 | K4: Sep 2014 | L4: Oct 2014 | M4: Nov 2014 | N4: Dec 2014 | O4: Total 2014 | P4: 13 Mo. Avg.
A5: Production
A6: Plant in Service | B6: 499215837.5 | C6: 499285812.7 | D6: 499351457.9 | E6: 499706777.2 | F6: 500708228.1 | G6: 500850864.5 | H6: 501236376.7 | I6: 502383389.4 | J6: 502421110.7 | K6: 502694119.2 | L6: 507260325.6 | M6: 527065631.6 | N6: 613483917 | P6: =ROUND(AVERAGE(B6:N6),0) -> 511974142
A7: Accumulated Depreciation | B7: 247386267.4 | C7: 248627705.9 | D7: 249869337.5 | E7: 251111141.7 | F7: 252354013.8 | G7: 253599020.1 | H7: 254844362.1 | I7: 256090645.1 | J7: 257339999.3 | K7: 258589439.4 | L7: 259839548.6 | M7: 261099195 | N7: 262399953.5 | P7: 254857741
A8: Depreciation Expense | B8: 1205378.048 | C8: 1207943.336 | D8: 1208136.452 | E8: 1208308.983 | F8: 1209376.913 | G8: 1211511.138 | H8: 1211846.853 | I8: 1212787.846 | J8: 1215859.05 | K8: 1215944.885 | L8: 1216614.044 | M8: 1226151.217 | N8: 1267263.401 | O8: =ROUND(SUM(C8:N8),0) -> 14611744 | P8: 1216702
B9: 0 | C9: 0 | D9: 0 | E9: 0 | F9: 0 | G9: 0 | H9: 0 | I9: 0 | J9: 0 | K9: 0 | L9: 0 | M9: 0 | N9: 0
A10: Transmission
A11: Plant in Service | B11: 207807316.2 | C11: 207836458.4 | D11: 207876699.1 | E11: 207918870.3 | F11: 207959721.2 | G11: 208056786.1 | H11: 208186565.7 | I11: 208320152.5 | J11: 209828182 | K11: 211316724.3 | L11: 214170346.7 | M11: 217200600.4 | N11: 233160222.1 | P11: =ROUND(AVERAGE(B11:N11),0) -> 211510665
A12: Accumulated Depreciation | B12: 90107245.7 | C12: 90543169.44 | D12: 90979145.07 | E12: 91415167.78 | F12: 91851239.95 | G12: 92287354.54 | H12: 92723562.34 | I12: 93159891.8 | J12: 93596357.78 | K12: 94035807.04 | L12: 94477202 | M12: 94923400.89 | N12: 95375262.93 | P12: 92728831
A13: Depreciation Expense | B13: 308786.2021 | C13: 325563 | D13: 325616.2252 | E13: 325662.3708 | F13: 325710.8974 | G13: 325751.769 | H13: 325841.3055 | I13: 325957.9021 | J13: 326090.5487 | K13: 329071.4992 | L13: 331015.8223 | M13: 335818.9804 | N13: 341480.0789 | O13: =ROUND(SUM(C13:N13),0) -> 3943580 | P13: 327105
B14: 0 | C14: 0 | D14: 0 | E14: 0 | F14: 0 | G14: 0 | H14: 0 | I14: 0 | J14: 0 | K14: 0 | L14: 0 | M14: 0 | N14: 0
A15: Distribution
A16: Plant in Service | B16: 253116001.6 | C16: 254800357.1 | D16: 255757463.8 | E16: 258156492.3 | F16: 260968055.2 | G16: 261993428 | H16: 265479553.1 | I16: 266344945.3 | J16: 267958584 | K16: 270259507 | L16: 272167376.9 | M16: 274598883.9 | N16: 277798856.5 | P16: =ROUND(AVERAGE(B16:N16),0) -> 264569193
A17: Accumulated Depreciation | B17: 111627659.1 | C17: 112200647.4 | D17: 112777162.9 | E17: 113355681.2 | F17: 113939528.6 | G17: 114528700.3 | H17: 115119996.7 | I17: 115714303.4 | J17: 116307266.4 | K17: 116909524.8 | L17: 117516211.5 | M17: 118126766.6 | N17: 118742621.7 | P17: 115143544
A18: Depreciation Expense | B18: 551808.0939 | C18: 559146.6727 | D18: 562673.9695 | E18: 564676.6356 | F18: 570005.8224 | G18: 575330.0814 | H18: 577454.7219 | I18: 583244.0017 | J18: 585040.0966 | K18: 588416.724 | L18: 592845.0992 | M18: 596713.5411 | N18: 602013.4301 | O18: =ROUND(SUM(C18:N18),0) -> 6957561 | P18: 577644
B19: 0 | C19: 0 | D19: 0 | E19: 0 | F19: 0 | G19: 0 | H19: 0 | I19: 0 | J19: 0 | K19: 0 | L19: 0 | M19: 0 | N19: 0 | R19: Total
A20: General | R20: General
A21: Plant in Service | B21: 26592523.98 | C21: 26652182.42 | D21: 26709814.25 | E21: 26814003.89 | F21: 26880981.6 | G21: 26939173.48 | H21: 27074384.12 | I21: 27164226.79 | J21: 27416450.11 | K21: 27525631.95 | L21: 27900757.91 | M21: 27967421.55 | N21: 29166603.44 | P21: =ROUND(AVERAGE(B21:N21),0) -> 27292627 | R21: =+P21+P26 -> 36127355
A22: Accumulated Depreciation | B22: 11260141.23 | C22: 11439919.12 | D22: 11619969.29 | E22: 11800088.38 | F22: 11980352.9 | G22: 12160895.77 | H22: 12341722.85 | I22: 12523201.63 | J22: 12704861.65 | K22: 12887694.81 | L22: 13071336.51 | M22: 13257234.99 | N22: 13443425.34 | P22: 12345450 | R22: =+P22+P27 -> 14123385
A23: Depreciation Expense | B23: 149476.4544 | C23: 153059.3231 | D23: 153331.6164 | E23: 153400.5327 | F23: 153545.9591 | G23: 153824.3043 | H23: 154108.5247 | I23: 154777.1187 | J23: 155216.2891 | K23: 156381.8877 | L23: 156923.1421 | M23: 159179.9148 | N23: 159471.794 | O23: =ROUND(SUM(C23:N23),0) -> 1863220 | P23: 154823 | R23: =+O23+O28 -> 2883989
B24: 0 | C24: 0 | D24: 0 | E24: 0 | F24: 0 | G24: 0 | H24: 0 | I24: 0 | J24: 0 | K24: 0 | L24: 0 | M24: 0 | N24: 0
A25: Intangible
A26: Plant in Service | B26: 8746967.898 | C26: 8746967.898 | D26: 8746967.898 | E26: 8746967.898 | F26: 8873732.261 | G26: 8873732.261 | H26: 8873732.261 | I26: 8873732.261 | J26: 8873732.261 | K26: 8873732.261 | L26: 8873732.261 | M26: 8873732.261 | N26: 8873732.261 | P26: 8834728
A27: Accumulated Depreciation | B27: 1266760.928 | C27: 1351393.038 | D27: 1436025.148 | E27: 1520657.258 | F27: 1605289.368 | G27: 1691142.466 | H27: 1776995.564 | I27: 1862848.662 | J27: 1948701.76 | K27: 2034554.858 | L27: 2120407.957 | M27: 2206261.055 | N27: 2292114.153 | P27: 1777935
A28: Depreciation Expense | B28: 84250.13029 | C28: 84250.13029 | D28: 84250.13029 | E28: 84250.13029 | F28: 84250.13029 | G28: 85471.11846 | H28: 85471.11846 | I28: 85471.11846 | J28: 85471.11846 | K28: 85471.11846 | L28: 85471.11846 | M28: 85471.11846 | N28: 85471.11846 | O28: =ROUND(SUM(C28:N28),0) -> 1020769 | P28: 85002
B29: 0 | C29: 0 | D29: 0 | E29: 0 | F29: 0 | G29: 0 | H29: 0 | I29: 0 | J29: 0 | K29: 0 | L29: 0 | M29: 0 | N29: 0 | R29: Total
A30: Common - Intangible | R30: Common
A31: Plant in Service | B31: 55162350 | C31: 55355323 | D31: 55548296 | E31: 55741269 | F31: 55934242 | G31: 56127215 | H31: 56320188 | I31: 56513162 | J31: 56706135 | K31: 56899108 | L31: 57092081 | M31: 57285054 | N31: 58753171 | P31: =ROUND(AVERAGE(B31:N31),0) -> 56418276 | R31: =+P31+P36 -> 122813988
A32: Accumulated Depreciation | B32: 5345268 | C32: 5785027 | D32: 6226054 | E32: 6668346 | F32: 7111906 | G32: 7556732 | H32: 8002824 | I32: 8450184 | J32: 8898810 | K32: 9348702 | L32: 9799861 | M32: 10252287 | N32: 10705979 | P32: 8011691 | R32: =+P32+P37 -> 36894903
A33: Depreciation Expense | B33: 363831 | C33: 365381 | D33: 366648 | E33: 367915 | F33: 369181 | G33: 370448 | H33: 371714 | I33: 372981 | J33: 374248 | K33: 375514 | L33: 376781 | M33: 378047 | N33: 379314 | O33: =ROUND(SUM(C33:N33),0) -> 4468172 | P33: 371693 | R33: =+O33+O38 -> 7422357
B34: 0 | C34: 0 | D34: 0 | E34: 0 | F34: 0 | G34: 0 | H34: 0 | I34: 0 | J34: 0 | K34: 0 | L34: 0 | M34: 0 | N34: 0
A35: Common - Other
A36: Plant in Service | B36: 65685543 | C36: 65728694 | D36: 65828604 | E36: 65903148 | F36: 66112152 | G36: 66220037 | H36: 66330039 | I36: 66402804 | J36: 66503708 | K36: 66806843 | L36: 66966905 | M36: 67055287 | N36: 67600491 | P36: =ROUND(AVERAGE(B36:N36),0) -> 66395712
A37: Accumulated Depreciation | B37: 27051919 | C37: 27355783 | D37: 27659200 | E37: 27962089 | F37: 28265942 | G37: 28566835 | H37: 28874223 | I37: 29182390 | J37: 29491028 | K37: 29800397 | L37: 30111609 | M37: 30423805 | N37: 30736541 | P37: 28883212
A38: Depreciation Expense | B38: 241248 | C38: 243473 | D38: 243783 | E38: 244457 | F38: 244975 | G38: 246314 | H38: 247042 | I38: 246878 | J38: 247221 | K38: 247754 | L38: 249630 | M38: 246125 | N38: 246533 | O38: =ROUND(SUM(C38:N38),0) -> 2954185 | P38: 245803
B39: 0 | C39: 0 | D39: 0 | E39: 0 | F39: 0 | G39: 0 | H39: 0 | I39: 0 | J39: 0 | K39: 0 | L39: 0 | M39: 0 | N39: 0
A40: FERC Function Total
A42: Plant in Service | B42: =+ROUND(B6+B11+B16+B21+B26+B31+B36,0) -> 1116326540 | C42: 1118405796 | D42: 1119819303 | E42: 1122987529 | F42: 1127437112 | G42: 1129061236 | H42: 1133500839 | I42: 1136002412 | J42: 1139707902 | K42: 1144375666 | L42: 1154431525 | M42: 1180046611 | N42: 1288836993 | O42: 0 | P42: =ROUND(AVERAGE(B42:N42),0) -> 1146995343
A43: Accumulated Depreciation | B43: =ROUND(+B7+B12+B17+B22+B27+B32+B37,0) -> 494045261 | C43: 497303645 | D43: 500566894 | E43: 503833171 | F43: 507108273 | G43: 510390680 | H43: 513683687 | I43: 516983465 | J43: 520287025 | K43: 523606120 | L43: 526936177 | M43: 530288951 | N43: 533695898 | O43: 0 | P43: 513748404
A44: Depreciation Expense | B44: =ROUND(+B8+B13+B18+B23+B28+B33+B38,0) -> 2904778 | C44: 2938816 | D44: 2944439 | E44: 2948671 | F44: 2957046 | G44: 2968650 | H44: 2973479 | I44: 2982097 | J44: 2989146 | K44: 2998554 | L44: 3009280 | M44: 3027507 | N44: 3081547 | O44: =ROUND(SUM(C44:N44),0) -> 35819232 | P44: 2978770
B45: 0 | C45: 0 | D45: 0 | E45: 0 | F45: 0 | G45: 0 | H45: 0 | I45: 0 | J45: 0 | K45: 0 | L45: 0 | M45: 0 | N45: 0

Sheet Common Electric
A1: Common Electric
A2: Depreciation Expense
A5: 2013 Final | B5: Jan 2014 | C5: Feb 2014 | D5: Mar 2014 | E5: Apr 2014 | F5: May 2014 | G5: Jun 2014 | H5: Jul 2014 | I5: Aug 2014 | J5: Sep 2014 | K5: Oct 2014 | L5: Nov 2014 | M5: Dec 2014 | N5: Year 2014
A7: Depreciation Expense | B7: 305451.7886 | C7: 306010.2015 | D7: 306756.8696 | E7: 307415.7561 | F7: 308537.4713 | G7: 309331.0664 | H7: 310129.8872 | I7: 310652.3721 | J7: 311344.1601 | K7: 312698.0913 | L7: 310234.3744 | M7: 311098.3327 | N7: =SUM(B7:M7) -> 3709660.371

Sheet CWIP
A1: Montana-Dakota Utilities Co.
A2: Projected CWIP - MVP Project
A3: 13 Month Average
C6: MVP Project 1/
C7: Beginning | E7: Projected | G7: Ending
C8: Balance | E8: CWIP | G8: Balance
A9: December 2013 | G9: 3291679
A10: January 2014 | C10: =+G9 -> 3291679 | E10: 378443 | G10: =+C10+E10 -> 3670122
A11: February | C11: =+G10 -> 3670122 | E11: 378443 | G11: 4048565
A12: March | C12: 4048565 | E12: 378443 | G12: 4427008
A13: April | C13: 4427008 | E13: 378443 | G13: 4805451
A14: May | C14: 4805451 | E14: 378443 | G14: 5183894
A15: June | C15: 5183894 | E15: 378443 | G15: 5562337
A16: July | C16: 5562337 | E16: 378443 | G16: 5940780
A17: August | C17: 5940780 | E17: 378443 | G17: 6319223
A18: September | C18: 6319223 | E18: 378443 | G18: 6697666
A19: October | C19: 6697666 | E19: 378443 | G19: 7076109
A20: November | C20: 7076109 | E20: 378443 | G20: 7454552
A21: December | C21: 7454552 | E21: 378443 | G21: 7832995
E22: =SUM(E10:E21) -> 4541316
A24: 13 Month Average Balance: | G24: =AVERAGE(G9:G21) -> 5562337
A27: 1/ CWIP Recovery for FERC Commission Approved Order No. 679 Transmission Projects.

Sheet Working Capital
A1: Working Capital
A2: Montana-Dakota Utilities Co.
A3: Integrated System
A4: 13 Month Average
A8: Materials and Supplies
C9: MDU Integrated
A10: Month | C10: System | E10: Transmission 1/
A11: December 2013 | C11: 13891000 | E11: =+ROUND(C11*$C$49,0) -> 3056020
A12: January 2014 | C12: 13891000 | E12: =+ROUND(C12*$C$49,0) -> 3056020
A13: February | C13: 13891000 | E13: 3056020
A14: March | C14: 13891000 | E14: 3056020
A15: April | C15: 13891000 | E15: 3056020
A16: May | C16: 13891000 | E16: 3056020
A17: June | C17: 13891000 | E17: 3056020
A18: July | C18: 13891000 | E18: 3056020
A19: August | C19: 13891000 | E19: 3056020
A20: September | C20: 13891000 | E20: 3056020
A21: October | C21: 13891000 | E21: 3056020
A22: November | C22: 13891000 | E22: 3056020
A23: December | C23: 13891000 | E23: 3056020
A24: 13 Month Average | C24: =ROUND(AVERAGE(C11:C23),0) -> 13891000 | E24: =ROUND(AVERAGE(E11:E23),0) -> 3056020
A26: Prepayments
C27: MDU Integrated
A28: Month | C28: System
A29: December 2013 | C29: 730000
A30: January 2014 | C30: 730000
A31: February | C31: 730000
A32: March | C32: 730000
A33: April | C33: 730000
A34: May | C34: 730000
A35: June | C35: 730000
A36: July | C36: 730000
A37: August | C37: 730000
A38: September | C38: 730000
A39: October | C39: 730000
A40: November | C40: 730000
A41: December | C41: 730000
A42: 13 Month Average | C42: =ROUND(AVERAGE(C29:C41),0) -> 730000
A45: 1/ Transmission related materials and supplies reflects 22 percent of the
A46: total materials and supplies based on twelve months ending
A47: June 30, 2013 actual data. Excludes Wyoming.
C49: 0.22

Sheet 282 283 190
A1: Montana-Dakota Utilities Co.
A2: Accounts 282, 282, and 190
C5: Beginning | E5: Ending | G5: Average
A6: Account | C6: Balance | E6: Balance | G6: Balance
A7: 282 | C7: -152954375 | E7: -152954375 | G7: =AVERAGE(E7) -> -152954375
A8: 283 | C8: -21047933 | E8: -21047933 | G8: =AVERAGE(E8) -> -21047933
A9: 190 | C9: 24498545 | E9: 24498545 | G9: 24498545

Sheet EPRI
A1: Montana-Dakota Utilities Co.
A2: EPRI, Reg. Commission Expense and Non-Safety Ad
C4: 2012 | E4: 2011 | G4: 2010
A5: Total Company | C5: =82525+131331+15077+25525 -> 254458 | E5: =47960+129438+17801+27775 -> 222974 | G5: 185404 | I5: Page 351 Ferc Form 1, Column h, lines 5, 11, 17, and 27
C6: 60448 | E6: 103286 | G6: 51824 | I6: A&G O&M by Jurisdiction Workpaper (Ferc Account 930.1)
C7: =SUM(C5:C6) -> 314906 | E7: =SUM(E5:E6) -> 326260 | G7: =SUM(G5:G6) -> 237228
A9: Less Wyoming | C9: 25525 | E9: 27775 | G9: 9575 | I9: Page 351 Ferc Form 1, Column h, line 27
C10: 2612 | E10: 4298 | G10: 1061 | I10: A&G O&M by Jurisdiction Workpaper (Ferc Account 930.1)
C11: =SUM(C9:C10) -> 28137 | E11: =SUM(E9:E10) -> 32073 | G11: =SUM(G9:G10) -> 10636
A13: Total Company Excl. Wyoming | C13: =+C7-C11 -> 286769 | E13: =+E7-E11 -> 294187 | G13: =+G7-G11 -> 226592
A15: 3 Yr. Avg. | C15: =ROUND(AVERAGE(C13,E13,G13),0) -> 269183

Sheet Reg Expense
A1: Regulatory Commission Expense
A2: Acct: 92500.5913.19280
A3: Twelve Months ended July 31, 2013
A6: Do Ty | B6: Doc Number | C6: G/L Date | D6: Explanation | E6: LT 1 Debit | F6: LT 1 Credit
A7: JE | B7: 1052588 | C7: 2012-08-31 | D7: JAH VO50 WAPA/MISO/BHP S&P | E7: 16691.79
A8: JE | B8: 1055388 | C8: 2012-09-30 | D8: JAH VO50 WAPA/MISO/BHP S&P | E8: 14347.58
A9: JE | B9: 1058433 | C9: 2012-10-31 | D9: JAH VO50 WAPA/MISO/BHP S&P | E9: 12586.69
A10: JE | B10: 1061345 | C10: 2012-11-30 | D10: JAH VO50 WAPA/MISO/BHP S&P | E10: 14840.06
A11: JE | B11: 1065237 | C11: 2012-12-31 | D11: JAH VO50 WAPA/MISO/BHP S&P | E11: 13638.41
A12: JE | B12: 1065240 | C12: 2012-12-31 | D12: JAH ANNUAL MISO SCHED 11 ADJ | E12: 5722.17
A13: JE | B13: 1065240 | C13: 2012-12-31 | D13: JAH ANNUAL MISO SCHED 11 ADJ | F13: -2347.54
A14: JE | B14: 1068417 | C14: 2013-01-31 | D14: JAH VO50 WAPA/MISO/BHP S&P | E14: 17811.36
A15: JE | B15: 1071669 | C15: 2013-02-28 | D15: JAH VO50 WAPA/MISO/BHP S&P | E15: 14279.73
A16: JE | B16: 1075260 | C16: 2013-03-31 | D16: JAH VO50 WAPA/MISO/BHP S&P | E16: 14622.28
A17: JE | B17: 1078859 | C17: 2013-04-30 | D17: JAH VO50 WAPA/MISO/BHP S&P | E17: 13887.94
A18: JE | B18: 1082573 | C18: 2013-05-31 | D18: JAH VO50 WAPA/MISO/BHP S&P | E18: 13672.34
A19: JE | B19: 1085949 | C19: 2013-06-30 | D19: JAH VO50 WAPA/MISO/BHP S&P | E19: 13887.94
A20: JE | B20: 1089225 | C20: 2013-07-31 | D20: JAH VO50 WAPA/MISO/BHP S&P | E20: 19711.24
A21: PV | B21: 1733188 | C21: 2013-08-13 | D21: FERC | E21: 3653
D22: Column Total | E22: 189352.53 | F22: -2347.54
D23: Ledger Total | E23: 187004.99
D24: Posted Total | E24: 189352.53 | F24: -2347.54
D25: Unposted Total
D27: Sched 11 | E27: =+E12+F13 -> 3374.63
D29: Net Sched 10 | E29: =+E23-E27-E31 -> 179977.36 | F29: Pg. 3 Line 4
D31: FERC Annual Fees | E31: =+E21 -> 3653 | F31: Pg. 3 Line 5a

Sheet Transmission O&M
A1: MONTANA-DAKOTA UTILITIES CO.
A2: TRANSMISSION O&M
A3: Projected 2014
A6: Transmission - Total Company | C6: 8858000
A7: Less Wyoming | C7: =+ROUND(C6*C32,0) -> 95666
A8: Total Electric Integrated System | C8: =+C6-C7 -> 8762334
C16: 2012
A17: Account | C17: Total | E17: Montana | G17: North Dakota | I17: South Dakota | K17: Wyoming
A18: (560) Operation Supervision and Engineering | C18: =SUM(E18:L18) -> 1248286 | E18: 270434 | G18: =854877+1 -> 854878 | I18: 109852 | K18: 13122
A19: (561.0 - 561.8) Load Dispatch | C19: 1868095 | E19: 399984 | G19: 1264400 | I19: 162475 | K19: 41236
A20: (562) Station Expenses | C20: 447250 | E20: 89112 | G20: =299810+1 -> 299811 | I20: 41021 | K20: 17306
A21: (563) Overhead Lines Expenses | C21: 116840 | E21: 42307 | G21: =51658+1 -> 51659 | I21: 22874
A22: (565) Transmission of Electricity by Others | C22: 1306926 | E22: 238824 | G22: 974593 | I22: 93509
A23: (566) Misc Transmission Expense | C23: 96615 | E23: 21028 | G23: =66939-1 -> 66938 | I23: 8649
A24: (567) Rents | C24: 1568551 | E24: 167782 | G24: 1249718 | I24: 151051
A25: (568) Maintenance Supervision & Engineering | C25: =SUM(E25:L25) -> 41324 | E25: 9434 | G25: 28113 | I25: 3777
A26: (570) Maintenance of Structures | C26: =SUM(E26:L26) -> 589962 | E26: 160507 | G26: =372162+1 -> 372163 | I26: 40796 | K26: 16496
A27: (571) Maintenance of Station Equipment | C27: =SUM(E27:L27) -> 853310 | E27: 120491 | G27: =679063-1 -> 679062 | I27: 53757
A28: (572) Maintenance of Underground Lines | C28: =SUM(E28:L28) -> 502 | G28: 502
A29: Total 2012 | C29: =SUM(C18:C28) -> 8137661 | E29: =SUM(E18:E28) -> 1519903 | G29: =SUM(G18:G28) -> 5841837 | I29: =SUM(I18:I28) -> 687761 | K29: =SUM(K18:K28) -> 88160
A32: Wyoming percentage | C32: =+ROUND(K29/C29,4) -> 0.0108

Sheet A&G O&M
A1: MONTANA-DAKOTA UTILITIES CO.
A2: A&G O&M
A3: BY JURISDICTION
A4: Projected 2014
A7: A&G - Total Company | C7: 20842000
A8: Less Wyoming | C8: =+ROUND(C7*C30,0) -> 1748644
A9: Total Electric Integrated System | C9: =+C7-C8 -> 19093356
C13: 2012
A14: Account | C14: Total | E14: Montana | G14: North Dakota | I14: South Dakota | K14: Wyoming
A15: (920) Administrative & General Salaries | C15: =SUM(E15:L15) -> 4790414 | E15: 987686 | G15: 3017179 | I15: 348423 | K15: 437126
A16: (921) Office Supplies & Expenses | C16: 2951409 | E16: 606523 | G16: =1861385+1 -> 1861386 | I16: 215341 | K16: 268159
A17: (923) Outside Services Employed | C17: 532101 | E17: 95617 | G17: =366688-1 -> 366687 | I17: 31283 | K17: 38514
A18: (924) Property Insurance | C18: 874024 | E18: 168111 | G18: =513544-1 -> 513543 | I18: 59304 | K18: 133066
A19: (925) Injuries & Damages | C19: 1376701 | E19: 299449 | G19: =861049-1 -> 861048 | I19: 99371 | K19: 116833
A20: (926) Employee Pensions & Benefits | C20: 6670399 | E20: 1511354 | G20: 4174865 | I20: 533181 | K20: 450999
A21: (928) Regulatory Commission Expenses | C21: 612420 | E21: 319995 | G21: =211921+1 -> 211922 | I21: 15077 | K21: 65426
A22: (930.1) General Advertising Expenses | C22: 60448 | E22: 8514 | G22: 42253 | I22: 7069 | K22: 2612
A23: (930.2) Miscellaneous General Expenses | C23: 397889 | E23: 78654 | G23: =234880+1 -> 234881 | I23: 54112 | K23: 30242
A24: (931) Rents | C24: =SUM(E24:L24) -> 307708 | E24: 63252 | G24: =194838+1 -> 194839 | I24: 22563 | K24: 27054
A26: (935) Maintenance of General Plant | C26: 572796 | E26: 99124 | G26: =397162-1 -> 397161 | I26: 39872 | K26: 36639
C27: =SUM(C15:C26) -> 19146309 | E27: =SUM(E15:E26) -> 4238279 | G27: =SUM(G15:G26) -> 11875764 | I27: =SUM(I15:I26) -> 1425596 | K27: =SUM(K15:K26) -> 1606670
A30: Wyoming Percentage | C30: =+ROUND(K27/C27,4) -> 0.0839

Sheet Taxes Other
A1: Montana-Dakota Utilities Co.
A2: Projected 2014 - Taxes Other
C4: Total Electric | G4: Projected
C5: Projected 2014 | E5: Wyoming | G5: 2014
A6: Payroll Taxes | C6: 2109000 | E6: =+ROUND(C6*M18,0) -> 134976 | G6: =+C6-E6 -> 1974024
A7: Property Taxes | C7: 7932000 | E7: =+ROUND(C7*M19,0) -> 317280 | G7: =+C7-E7 -> 7614720
A8: Other Taxes | C8: 1167000 | E8: =+ROUND(C8*M20,0) -> 0 | G8: =+C8-E8 -> 1167000
A9: Revenue/Franchise Taxes | C9: 611000 | E9: =+ROUND(C9*M21,0) -> 271284 | G9: 339716
A10: Total Taxes Other | C10: =SUM(C6:C9) -> 11819000 | E10: =SUM(E6:E9) -> 723540 | G10: =SUM(G6:G9) -> 11095460
C16: 2012 | M16: Wyoming
C17: Total | E17: Montana | G17: North Dakota | I17: South Dakota | K17: Wyoming | M17: Percentage
A18: Payroll Taxes | C18: =SUM(E18:K18) -> 2066661 | E18: 464072 | G18: 1317778 | I18: 152827 | K18: 131984 | M18: =+ROUND(K18/C18,3) -> 0.064
A19: Property Taxes | C19: =SUM(E19:K19) -> 6706570 | E19: 2875170 | G19: 3162709 | I19: 398375 | K19: 270316 | M19: =+ROUND(K19/C19,3) -> 0.04
A20: Other Taxes | C20: 1098099 | E20: =+ROUND(312493.83+955.85,0) -> 313450 | G20: =+ROUND(718205.99+2943.09,0) -> 721149 | I20: =+ROUND(62698.39+336.95,0) -> 63035 | K20: =+ROUND(464.56,0) -> 465 | M20: 0
A21: Revenue/Franchise Taxes | C21: 489423 | E21: =+ROUND(21396.67+158733.41,0) -> 180130 | G21: =+ROUND(63620.19,0) -> 63620 | I21: =+ROUND(7905.52+20360.37,0) -> 28266 | K21: =+ROUND(168100.42+49306.9,0) -> 217407 | M21: 0.444
A22: Total Taxes Other | C22: =SUM(C18:C21) -> 10360753 | E22: =SUM(E18:E21) -> 3832822 | G22: =SUM(G18:G21) -> 5265256 | I22: 642503 | K22: 620172 | M22: 0.06

Sheet Prod Related Plant
A1: MONTANA-DAKOTA UTILITIES CO.
A2: MISO ATTACHMENT O - WORKPAPER
A3: PRODUCTION-RELATED PLANT REMOVED FROM TRANSMISSION
D5: Projected
A6: Facility | D6: 2014
A8: Glendive Turbine Junction
A9: Transmission Function FERC 353 | D9: 804955.61
A11: Heskett Station
A12: Transmission Function FERC 353 | D12: 1335942.86
A14: Miles City Turbine
A15: Transmission Function FERC 353 | D15: 112666.21
A17: Lewis & Clark Switchyard
A18: Transmission Function FERC 353 | D18: 424864.59
A20: Coyote Aux. Power 115KV Tap Line
A21: Towers & Fixtures Function FERC 3540 | D21: 2122.09
A22: Transmission Function FERC 355 | D22: 3284.29
A23: Overhead Conductor & Device Function FERC 3560 | D23: 6874.08
A24: Total | D24: =SUM(D21:D23) -> 12280.46
A26: Big Stone Plant Intake Line
A27: Transmission Function FERC 355 | D27: 9512.84
A28: Overhead Conductor & Device Function FERC 3560 | D28: 247
A29: Total | D29: =SUM(D27:D28) -> 9759.84
A31: Coyote Surge Pond Line
A32: Land Rights Function FERC 3502 | D32: 138
A33: Transmission Function FERC 355 | D33: 4258.86
A34: Overhead Conductor & Device Function FERC 3560 | D34: 2591.44
A35: Total | D35: =SUM(D32:D34) -> 6988.3
A37: Diamond Willow Substation
A38: Transmission Function FERC 353 | D38: 3279895.7
A39: Transmission Function FERC 3501 | D39: 1618.18
D40: =SUM(D38:D39) -> 3281513.88
A42: Cedar Hills Substation
A43: Transmission Function FERC 353 | D43: 2046675.76
A44: Transmission Function FERC 3501 | D44: 4675.44
A45: Transmission Function FERC 3502 | D45: 1052.63
D46: =SUM(D43:D45) -> 2052403.83
A48: Ormat Transmission Line
A49: Transmission Function FERC 353 to Power Production | D49: 210979.45
A50: Transmission Function FERC 355 | D50: 235953.37
A51: Overhead Conductor & Device Function FERC 3560 | D51: 163705.36
A52: Land Rights Function FERC 3502 | D52: 574.9
D53: =SUM(D49:D52) -> 611213.08
B56: Total | D56: =+D9+D12+D15+D18+D24+D29+D35+D40+D46+D53 -> 8652588.66

Sheet Wages & Salary
A1: Wages & Salary Workpaper
A2: Page 4, Lines 12 - 16
A3: Projected 2014
C6: Labor
A7: Production | C7: 8169000
A8: Transmission | C8: 3238000
A9: Distribution | C9: 8291000
A10: Other | C10: =1791000+123000+122000 -> 2036000 | D10: 1/
A11: Total | C11: =SUM(C7:C10) -> 21734000
A14: 1/ Includes Customer Accounts, Customer
A15: Service, and Sales.

Sheet Common Plant Alloc
A1: Montana-Dakota Utilities Co.
A2: Common Plant Allocator
A3: Projected 2014
B4: 0
B5: 0
B7: Electric
A8: Electric Utility Plant in Service | B8: 1353305676
A9: Gas Utility Plant in Service | B9: 456792147
B10: =SUM(B8:B9) -> 1810097823

Sheet Cap Structure
A1: Montana-Dakota Utilities Co.
A2: Capital Structure
C4: Long Term | E4: Preferrred | G4: Proprietary | I4: Account | K4: Long Term | M4: Preferred
C5: Interest | E5: Dividends | G5: Capital | I5: 123.1 | K5: Debt | M5: Stock
A6: December 2013 | C6: 1779000 | E6: 57000 | G6: 2701203000 | I6: 2254241000 | K6: 380759000 | M6: 15000000
A7: January 2014 | C7: 1779000 | E7: 57000 | G7: 2708264000 | I7: 2254241000 | K7: 380759000 | M7: 15000000
A8: February | C8: 1779000 | E8: 57000 | G8: 2707145000 | I8: 2254241000 | K8: 380758000 | M8: 15000000
A9: March | C9: 1779000 | E9: 57000 | G9: 2711688000 | I9: 2254241000 | K9: 380757000 | M9: 15000000
A10: April | C10: 1779000 | E10: 57000 | G10: 2714082000 | I10: 2254241000 | K10: 380757000 | M10: 15000000
A11: May | C11: 1779000 | E11: 57000 | G11: 2707934000 | I11: 2254241000 | K11: 380756000 | M11: 15000000
A12: June | C12: 1779000 | E12: 57000 | G12: 2709524000 | I12: 2254241000 | K12: 380755000 | M12: 15000000
A13: July | C13: 1779000 | E13: 57000 | G13: 2713077000 | I13: 2254241000 | K13: 380755000 | M13: 15000000
A14: August | C14: 1779000 | E14: 57000 | G14: 2709141000 | I14: 2254241000 | K14: 380754000 | M14: 15000000
A15: September | C15: 1779000 | E15: 57000 | G15: 2757845000 | I15: 2254241000 | K15: 380753000 | M15: 15000000
A16: October | C16: 1958000 | E16: 57000 | G16: 2760818000 | I16: 2254241000 | K16: 430752000 | M16: 15000000
A17: November | C17: 1958000 | E17: 57000 | G17: 2759135000 | I17: 2254241000 | K17: 430752000 | M17: 15000000
A18: December | C18: 1957000 | E18: 58000 | G18: 2766255000 | I18: 2254241000 | K18: 430651000 | M18: 15000000
A19: Total 2014 | C19: =SUM(C7:C18) -> 21884000 | E19: =SUM(E7:E18) -> 685000
A21: 13 Month Avg. | G21: =AVERAGE(G6:G18) -> 2725085462 | I21: =AVERAGE(I6:I18) -> 2254241000 | K21: =AVERAGE(K6:K18) -> 392286000 | M21: =AVERAGE(M6:M18) -> 15000000

Sheet Rent 454
A1: Account Number | B1: Doc Number | C1: G/L Date | D1: Explanation | E1: LT 1 Debit | F1: LT 1 Credit | G1: Account Description
A2: 60.4540.008 | B2: 1051186 | C2: 2012-08-31 | D2: JAH BEPC-COMMON USE AGREEMENT | F2: -64654 | G2: Joint Use Facilities
A3: 60.4540.008 | B3: 1054075 | C3: 2012-09-30 | D3: JAH BEPC-COMMON USE AGREEMENT | F3: -64654 | G3: Joint Use Facilities
A4: 60.4540.008 | B4: 1057100 | C4: 2012-10-31 | D4: JAH BEPC-COMMON USE AGREEMENT | F4: -64654 | G4: Joint Use Facilities
A5: 60.4540.008 | B5: 1059930 | C5: 2012-11-30 | D5: JAH BEPC-COMMON USE AGREEMENT | F5: -64654 | G5: Joint Use Facilities
A6: 60.4540.008 | B6: 1063140 | C6: 2012-12-31 | D6: JAH BEPC-COMMON USE AGREEMENT | F6: -64654 | G6: Joint Use Facilities
A7: 60.4540.008 | B7: 1067041 | C7: 2013-01-31 | D7: JAH BEPC-COMMON USE AGREEMENT | F7: -64654 | G7: Joint Use Facilities
A8: 60.4540.008 | B8: 1070710 | C8: 2013-02-28 | D8: JAH BEPC-COMMON USE AGREEMENT | F8: -64654 | G8: Joint Use Facilities
A9: 60.4540.008 | B9: 1073817 | C9: 2013-03-31 | D9: JAH BEPC-COMMON USE AGREEMENT | F9: -64654 | G9: Joint Use Facilities
A10: 60.4540.008 | B10: 1077546 | C10: 2013-04-30 | D10: JAH BEPC-COMMON USE AGREEMENT | F10: -64654 | G10: Joint Use Facilities
A11: 60.4540.008 | B11: 1080946 | C11: 2013-05-31 | D11: JAH BEPC-COMMON USE AGREEMENT | F11: -64654 | G11: Joint Use Facilities
A12: 60.4540.008 | B12: 1084390 | C12: 2013-06-30 | D12: JAH BEPC-COMMON USE AGREEMENT | F12: -64654 | G12: Joint Use Facilities
A13: 60.4540.008 | B13: 1088232 | C13: 2013-07-31 | D13: JAH BEPC-COMMON USE AGREEMENT | F13: -64654 | G13: Joint Use Facilities
A14: 60MT.4540.008 | B14: 1051186 | C14: 2012-08-31 | D14: JAH BEPC-COMMON USE AGREEMENT | F14: -79 | G14: Joint Use Facilities
A15: 60MT.4540.008 | B15: 1054075 | C15: 2012-09-30 | D15: JAH BEPC-COMMON USE AGREEMENT | F15: -79 | G15: Joint Use Facilities
A16: 60MT.4540.008 | B16: 1057100 | C16: 2012-10-31 | D16: JAH BEPC-COMMON USE AGREEMENT | F16: -79 | G16: Joint Use Facilities
A17: 60MT.4540.008 | B17: 1059930 | C17: 2012-11-30 | D17: JAH BEPC-COMMON USE AGREEMENT | F17: -79 | G17: Joint Use Facilities
A18: 60MT.4540.008 | B18: 1063140 | C18: 2012-12-31 | D18: JAH BEPC-COMMON USE AGREEMENT | F18: -79 | G18: Joint Use Facilities
A19: 60MT.4540.008 | B19: 1067041 | C19: 2013-01-31 | D19: JAH BEPC-COMMON USE AGREEMENT | F19: -79 | G19: Joint Use Facilities
A20: 60MT.4540.008 | B20: 1070710 | C20: 2013-02-28 | D20: JAH BEPC-COMMON USE AGREEMENT | F20: -79 | G20: Joint Use Facilities
A21: 60MT.4540.008 | B21: 1073817 | C21: 2013-03-31 | D21: JAH BEPC-COMMON USE AGREEMENT | F21: -79 | G21: Joint Use Facilities
A22: 60MT.4540.008 | B22: 1077546 | C22: 2013-04-30 | D22: JAH BEPC-COMMON USE AGREEMENT | F22: -79 | G22: Joint Use Facilities
A23: 60MT.4540.008 | B23: 1080946 | C23: 2013-05-31 | D23: JAH BEPC-COMMON USE AGREEMENT | F23: -79 | G23: Joint Use Facilities
A24: 60MT.4540.008 | B24: 1084390 | C24: 2013-06-30 | D24: JAH BEPC-COMMON USE AGREEMENT | F24: -79 | G24: Joint Use Facilities
A25: 60MT.4540.008 | B25: 1088232 | C25: 2013-07-31 | D25: JAH BEPC-COMMON USE AGREEMENT | F25: -79 | G25: Joint Use Facilities
A26: 60WY.4540.008 | B26: 1052539 | C26: 2012-08-31 | D26: JAH POWDER RIVER ENERGY CORP | F26: -2291.52 | G26: Joint Use Facilities
A27: 60WY.4540.008 | B27: 1055389 | C27: 2012-09-30 | D27: JAH POWDER RIVER ENERGY CORP | F27: -2143.35 | G27: Joint Use Facilities
A28: 60WY.4540.008 | B28: 1058435 | C28: 2012-10-31 | D28: JAH POWDER RIVER ENERGY CORP | F28: -2263.47 | G28: Joint Use Facilities
A29: 60WY.4540.008 | B29: 1061347 | C29: 2012-11-30 | D29: JAH POWDER RIVER ENERGY CORP | F29: -2312.97 | G29: Joint Use Facilities
A30: 60WY.4540.008 | B30: 1065123 | C30: 2012-12-31 | D30: JAH POWDER RIVER ENERGY CORP | F30: -2383.59 | G30: Joint Use Facilities
A31: 60WY.4540.008 | B31: 1068418 | C31: 2013-01-31 | D31: JAH POWDER RIVER ENERGY CORP | F31: -2365.77 | G31: Joint Use Facilities
A32: 60WY.4540.008 | B32: 1071670 | C32: 2013-02-28 | D32: JAH POWDER RIVER ENERGY CORP | F32: -2199.78 | G32: Joint Use Facilities
A33: 60WY.4540.008 | B33: 1075262 | C33: 2013-03-31 | D33: JAH POWDER RIVER ENERGY CORP | F33: -2037.42 | G33: Joint Use Facilities
A34: 60WY.4540.008 | B34: 1078920 | C34: 2013-04-30 | D34: JAH POWDER RIVER ENERGY CORP | F34: -1846.68 | G34: Joint Use Facilities
A35: 60WY.4540.008 | B35: 1082574 | C35: 2013-05-31 | D35: JAH POWDER RIVER ENERGY CORP | F35: -1772.43 | G35: Joint Use Facilities
A36: 60WY.4540.008 | B36: 1085950 | C36: 2013-06-30 | D36: JAH POWDER RIVER ENERGY CORP | F36: -1761.87 | G36: Joint Use Facilities
A37: 60WY.4540.008 | B37: 1089226 | C37: 2013-07-31 | D37: JAH POWDER RIVER ENERGY CORP | F37: -1945.68 | G37: Joint Use Facilities
A38: 316TS1.4540.008 | B38: 1051186 | C38: 2012-08-31 | D38: JAH BEPC-COMMON USE AGREEMENT | F38: -334 | G38: Joint Use Facilities
A39: 316TS1.4540.008 | B39: 1054075 | C39: 2012-09-30 | D39: JAH BEPC-COMMON USE AGREEMENT | F39: -334 | G39: Joint Use Facilities
A40: 316TS1.4540.008 | B40: 1057100 | C40: 2012-10-31 | D40: JAH BEPC-COMMON USE AGREEMENT | F40: -334 | G40: Joint Use Facilities
A41: 316TS1.4540.008 | B41: 1059930 | C41: 2012-11-30 | D41: JAH BEPC-COMMON USE AGREEMENT | F41: -334 | G41: Joint Use Facilities
A42: 316TS1.4540.008 | B42: 1063140 | C42: 2012-12-31 | D42: JAH BEPC-COMMON USE AGREEMENT | F42: -334 | G42: Joint Use Facilities
A43: 316TS1.4540.008 | B43: 1067041 | C43: 2013-01-31 | D43: JAH BEPC-COMMON USE AGREEMENT | F43: -334 | G43: Joint Use Facilities
A44: 316TS1.4540.008 | B44: 1070710 | C44: 2013-02-28 | D44: JAH BEPC-COMMON USE AGREEMENT | F44: -334 | G44: Joint Use Facilities
A45: 316TS1.4540.008 | B45: 1073817 | C45: 2013-03-31 | D45: JAH BEPC-COMMON USE AGREEMENT | F45: -334 | G45: Joint Use Facilities
A46: 316TS1.4540.008 | B46: 1077546 | C46: 2013-04-30 | D46: JAH BEPC-COMMON USE AGREEMENT | F46: -334 | G46: Joint Use Facilities
A47: 316TS1.4540.008 | B47: 1080946 | C47: 2013-05-31 | D47: JAH BEPC-COMMON USE AGREEMENT | F47: -334 | G47: Joint Use Facilities
A48: 316TS1.4540.008 | B48: 1084390 | C48: 2013-06-30 | D48: JAH BEPC-COMMON USE AGREEMENT | F48: -334 | G48: Joint Use Facilities
A49: 316TS1.4540.008 | B49: 1088232 | C49: 2013-07-31 | D49: JAH BEPC-COMMON USE AGREEMENT | F49: -334 | G49: Joint Use Facilities
A50: 324TS1.4540.008 | B50: 1051186 | C50: 2012-08-31 | D50: JAH BEPC-COMMON USE AGREEMENT | F50: -499 | G50: Joint Use Facilities
A51: 324TS1.4540.008 | B51: 1054075 | C51: 2012-09-30 | D51: JAH BEPC-COMMON USE AGREEMENT | F51: -499 | G51: Joint Use Facilities
A52: 324TS1.4540.008 | B52: 1057100 | C52: 2012-10-31 | D52: JAH BEPC-COMMON USE AGREEMENT | F52: -499 | G52: Joint Use Facilities
A53: 324TS1.4540.008 | B53: 1059930 | C53: 2012-11-30 | D53: JAH BEPC-COMMON USE AGREEMENT | F53: -499 | G53: Joint Use Facilities
A54: 324TS1.4540.008 | B54: 1063140 | C54: 2012-12-31 | D54: JAH BEPC-COMMON USE AGREEMENT | F54: -499 | G54: Joint Use Facilities
A55: 324TS1.4540.008 | B55: 1067041 | C55: 2013-01-31 | D55: JAH BEPC-COMMON USE AGREEMENT | F55: -499 | G55: Joint Use Facilities
A56: 324TS1.4540.008 | B56: 1070710 | C56: 2013-02-28 | D56: JAH BEPC-COMMON USE AGREEMENT | F56: -499 | G56: Joint Use Facilities
A57: 324TS1.4540.008 | B57: 1073817 | C57: 2013-03-31 | D57: JAH BEPC-COMMON USE AGREEMENT | F57: -499 | G57: Joint Use Facilities
A58: 324TS1.4540.008 | B58: 1077546 | C58: 2013-04-30 | D58: JAH BEPC-COMMON USE AGREEMENT | F58: -499 | G58: Joint Use Facilities
A59: 324TS1.4540.008 | B59: 1080946 | C59: 2013-05-31 | D59: JAH BEPC-COMMON USE AGREEMENT | F59: -499 | G59: Joint Use Facilities
A60: 324TS1.4540.008 | B60: 1084390 | C60: 2013-06-30 | D60: JAH BEPC-COMMON USE AGREEMENT | F60: -499 | G60: Joint Use Facilities
A61: 324TS1.4540.008 | B61: 1088232 | C61: 2013-07-31 | D61: JAH BEPC-COMMON USE AGREEMENT | F61: -499 | G61: Joint Use Facilities
A62: 329TS1.4540.008 | B62: 1051186 | C62: 2012-08-31 | D62: JAH BEPC-COMMON USE AGREEMENT | F62: -22 | G62: Joint Use Facilities
A63: 329TS1.4540.008 | B63: 1054075 | C63: 2012-09-30 | D63: JAH BEPC-COMMON USE AGREEMENT | F63: -22 | G63: Joint Use Facilities
A64: 329TS1.4540.008 | B64: 1057100 | C64: 2012-10-31 | D64: JAH BEPC-COMMON USE AGREEMENT | F64: -22 | G64: Joint Use Facilities
A65: 329TS1.4540.008 | B65: 1059930 | C65: 2012-11-30 | D65: JAH BEPC-COMMON USE AGREEMENT | F65: -22 | G65: Joint Use Facilities
A66: 329TS1.4540.008 | B66: 1063140 | C66: 2012-12-31 | D66: JAH BEPC-COMMON USE AGREEMENT | F66: -22 | G66: Joint Use Facilities
A67: 329TS1.4540.008 | B67: 1067041 | C67: 2013-01-31 | D67: JAH BEPC-COMMON USE AGREEMENT | F67: -22 | G67: Joint Use Facilities
A68: 329TS1.4540.008 | B68: 1070710 | C68: 2013-02-28 | D68: JAH BEPC-COMMON USE AGREEMENT | F68: -22 | G68: Joint Use Facilities
A69: 329TS1.4540.008 | B69: 1073817 | C69: 2013-03-31 | D69: JAH BEPC-COMMON USE AGREEMENT | F69: -22 | G69: Joint Use Facilities
A70: 329TS1.4540.008 | B70: 1077546 | C70: 2013-04-30 | D70: JAH BEPC-COMMON USE AGREEMENT | F70: -22 | G70: Joint Use Facilities
A71: 329TS1.4540.008 | B71: 1080946 | C71: 2013-05-31 | D71: JAH BEPC-COMMON USE AGREEMENT | F71: -22 | G71: Joint Use Facilities
A72: 329TS1.4540.008 | B72: 1084390 | C72: 2013-06-30 | D72: JAH BEPC-COMMON USE AGREEMENT | F72: -22 | G72: Joint Use Facilities
A73: 329TS1.4540.008 | B73: 1088232 | C73: 2013-07-31 | D73: JAH BEPC-COMMON USE AGREEMENT | F73: -22 | G73: Joint Use Facilities
A74: 359TS1.4540.008 | B74: 1051186 | C74: 2012-08-31 | D74: JAH BEPC-COMMON USE AGREEMENT | F74: -732 | G74: Joint Use Facilities
A75: 359TS1.4540.008 | B75: 1054075 | C75: 2012-09-30 | D75: JAH BEPC-COMMON USE AGREEMENT | F75: -732 | G75: Joint Use Facilities
A76: 359TS1.4540.008 | B76: 1057100 | C76: 2012-10-31 | D76: JAH BEPC-COMMON USE AGREEMENT | F76: -732 | G76: Joint Use Facilities
A77: 359TS1.4540.008 | B77: 1059930 | C77: 2012-11-30 | D77: JAH BEPC-COMMON USE AGREEMENT | F77: -732 | G77: Joint Use Facilities
A78: 359TS1.4540.008 | B78: 1063140 | C78: 2012-12-31 | D78: JAH BEPC-COMMON USE AGREEMENT | F78: -732 | G78: Joint Use Facilities
A79: 359TS1.4540.008 | B79: 1067041 | C79: 2013-01-31 | D79: JAH BEPC-COMMON USE AGREEMENT | F79: -732 | G79: Joint Use Facilities
A80: 359TS1.4540.008 | B80: 1070710 | C80: 2013-02-28 | D80: JAH BEPC-COMMON USE AGREEMENT | F80: -732 | G80: Joint Use Facilities
A81: 359TS1.4540.008 | B81: 1073817 | C81: 2013-03-31 | D81: JAH BEPC-COMMON USE AGREEMENT | F81: -732 | G81: Joint Use Facilities
A82: 359TS1.4540.008 | B82: 1077546 | C82: 2013-04-30 | D82: JAH BEPC-COMMON USE AGREEMENT | F82: -732 | G82: Joint Use Facilities
A83: 359TS1.4540.008 | B83: 1080946 | C83: 2013-05-31 | D83: JAH BEPC-COMMON USE AGREEMENT | F83: -732 | G83: Joint Use Facilities
A84: 359TS1.4540.008 | B84: 1084390 | C84: 2013-06-30 | D84: JAH BEPC-COMMON USE AGREEMENT | F84: -732 | G84: Joint Use Facilities
A85: 359TS1.4540.008 | B85: 1088232 | C85: 2013-07-31 | D85: JAH BEPC-COMMON USE AGREEMENT | F85: -732 | G85: Joint Use Facilities
A86: 369TS4.4540.008 | B86: 1051186 | C86: 2012-08-31 | D86: JAH BEPC-COMMON USE AGREEMENT | F86: -3147 | G86: Joint Use Facilities
A87: 369TS4.4540.008 | B87: 1054075 | C87: 2012-09-30 | D87: JAH BEPC-COMMON USE AGREEMENT | F87: -3147 | G87: Joint Use Facilities
A88: 369TS4.4540.008 | B88: 1057100 | C88: 2012-10-31 | D88: JAH BEPC-COMMON USE AGREEMENT | F88: -3147 | G88: Joint Use Facilities
A89: 369TS4.4540.008 | B89: 1059930 | C89: 2012-11-30 | D89: JAH BEPC-COMMON USE AGREEMENT | F89: -3147 | G89: Joint Use Facilities
A90: 369TS4.4540.008 | B90: 1063140 | C90: 2012-12-31 | D90: JAH BEPC-COMMON USE AGREEMENT | F90: -3147 | G90: Joint Use Facilities
A91: 369TS4.4540.008 | B91: 1067041 | C91: 2013-01-31 | D91: JAH BEPC-COMMON USE AGREEMENT | F91: -3147 | G91: Joint Use Facilities
A92: 369TS4.4540.008 | B92: 1070710 | C92: 2013-02-28 | D92: JAH BEPC-COMMON USE AGREEMENT | F92: -3147 | G92: Joint Use Facilities
A93: 369TS4.4540.008 | B93: 1073817 | C93: 2013-03-31 | D93: JAH BEPC-COMMON USE AGREEMENT | F93: -3147 | G93: Joint Use Facilities
A94: 369TS4.4540.008 | B94: 1077546 | C94: 2013-04-30 | D94: JAH BEPC-COMMON USE AGREEMENT | F94: -3147 | G94: Joint Use Facilities
A95: 369TS4.4540.008 | B95: 1080946 | C95: 2013-05-31 | D95: JAH BEPC-COMMON USE AGREEMENT | F95: -3147 | G95: Joint Use Facilities
A96: 369TS4.4540.008 | B96: 1084390 | C96: 2013-06-30 | D96: JAH BEPC-COMMON USE AGREEMENT | F96: -3147 | G96: Joint Use Facilities
A97: 369TS4.4540.008 | B97: 1088232 | C97: 2013-07-31 | D97: JAH BEPC-COMMON USE AGREEMENT | F97: -3147 | G97: Joint Use Facilities
A98: 369TS5.4540.008 | B98: 1051186 | C98: 2012-08-31 | D98: JAH BEPC-COMMON USE AGREEMENT | F98: -1543 | G98: Joint Use Facilities
A99: 369TS5.4540.008 | B99: 1054075 | C99: 2012-09-30 | D99: JAH BEPC-COMMON USE AGREEMENT | F99: -1543 | G99: Joint Use Facilities
A100: 369TS5.4540.008 | B100: 1057100 | C100: 2012-10-31 | D100: JAH BEPC-COMMON USE AGREEMENT | F100: -1543 | G100: Joint Use Facilities
A101: 369TS5.4540.008 | B101: 1059930 | C101: 2012-11-30 | D101: JAH BEPC-COMMON USE AGREEMENT | F101: -1543 | G101: Joint Use Facilities
A102: 369TS5.4540.008 | B102: 1063140 | C102: 2012-12-31 | D102: JAH BEPC-COMMON USE AGREEMENT | F102: -1543 | G102: Joint Use Facilities
A103: 369TS5.4540.008 | B103: 1067041 | C103: 2013-01-31 | D103: JAH BEPC-COMMON USE AGREEMENT | F103: -1543 | G103: Joint Use Facilities
A104: 369TS5.4540.008 | B104: 1070710 | C104: 2013-02-28 | D104: JAH BEPC-COMMON USE AGREEMENT | F104: -1543 | G104: Joint Use Facilities
A105: 369TS5.4540.008 | B105: 1073817 | C105: 2013-03-31 | D105: JAH BEPC-COMMON USE AGREEMENT | F105: -1543 | G105: Joint Use Facilities
A106: 369TS5.4540.008 | B106: 1077546 | C106: 2013-04-30 | D106: JAH BEPC-COMMON USE AGREEMENT | F106: -1543 | G106: Joint Use Facilities
A107: 369TS5.4540.008 | B107: 1080946 | C107: 2013-05-31 | D107: JAH BEPC-COMMON USE AGREEMENT | F107: -1543 | G107: Joint Use Facilities
A108: 369TS5.4540.008 | B108: 1084390 | C108: 2013-06-30 | D108: JAH BEPC-COMMON USE AGREEMENT | F108: -1543 | G108: Joint Use Facilities
A109: 369TS5.4540.008 | B109: 1088232 | C109: 2013-07-31 | D109: JAH BEPC-COMMON USE AGREEMENT | F109: -1543 | G109: Joint Use Facilities
A110: 381TS1.4540.008 | B110: 1051186 | C110: 2012-08-31 | D110: JAH BEPC-COMMON USE AGREEMENT | F110: -772 | G110: Joint Use Facilities
A111: 381TS1.4540.008 | B111: 1054075 | C111: 2012-09-30 | D111: JAH BEPC-COMMON USE AGREEMENT | F111: -772 | G111: Joint Use Facilities
A112: 381TS1.4540.008 | B112: 1057100 | C112: 2012-10-31 | D112: JAH BEPC-COMMON USE AGREEMENT | F112: -772 | G112: Joint Use Facilities
A113: 381TS1.4540.008 | B113: 1059930 | C113: 2012-11-30 | D113: JAH BEPC-COMMON USE AGREEMENT | F113: -772 | G113: Joint Use Facilities
A114: 381TS1.4540.008 | B114: 1063140 | C114: 2012-12-31 | D114: JAH BEPC-COMMON USE AGREEMENT | F114: -772 | G114: Joint Use Facilities
A115: 381TS1.4540.008 | B115: 1067041 | C115: 2013-01-31 | D115: JAH BEPC-COMMON USE AGREEMENT | F115: -772 | G115: Joint Use Facilities
A116: 381TS1.4540.008 | B116: 1070710 | C116: 2013-02-28 | D116: JAH BEPC-COMMON USE AGREEMENT | F116: -772 | G116: Joint Use Facilities
A117: 381TS1.4540.008 | B117: 1073817 | C117: 2013-03-31 | D117: JAH BEPC-COMMON USE AGREEMENT | F117: -772 | G117: Joint Use Facilities
A118: 381TS1.4540.008 | B118: 1077546 | C118: 2013-04-30 | D118: JAH BEPC-COMMON USE AGREEMENT | F118: -772 | G118: Joint Use Facilities
A119: 381TS1.4540.008 | B119: 1080946 | C119: 2013-05-31 | D119: JAH BEPC-COMMON USE AGREEMENT | F119: -772 | G119: Joint Use Facilities
A120: 381TS1.4540.008 | B120: 1084390 | C120: 2013-06-30 | D120: JAH BEPC-COMMON USE AGREEMENT | F120: -772 | G120: Joint Use Facilities
A121: 381TS1.4540.008 | B121: 1088232 | C121: 2013-07-31 | D121: JAH BEPC-COMMON USE AGREEMENT | F121: -772 | G121: Joint Use Facilities
A122: 382TS3.4540.008 | B122: 1051186 | C122: 2012-08-31 | D122: JAH BEPC-COMMON USE AGREEMENT | F122: -1680 | G122: Joint Use Facilities
A123: 382TS3.4540.008 | B123: 1054075 | C123: 2012-09-30 | D123: JAH BEPC-COMMON USE AGREEMENT | F123: -1680 | G123: Joint Use Facilities
A124: 382TS3.4540.008 | B124: 1057100 | C124: 2012-10-31 | D124: JAH BEPC-COMMON USE AGREEMENT | F124: -1680 | G124: Joint Use Facilities
A125: 382TS3.4540.008 | B125: 1059930 | C125: 2012-11-30 | D125: JAH BEPC-COMMON USE AGREEMENT | F125: -1680 | G125: Joint Use Facilities
A126: 382TS3.4540.008 | B126: 1063140 | C126: 2012-12-31 | D126: JAH BEPC-COMMON USE AGREEMENT | F126: -1680 | G126: Joint Use Facilities
A127: 382TS3.4540.008 | B127: 1067041 | C127: 2013-01-31 | D127: JAH BEPC-COMMON USE AGREEMENT | F127: -1680 | G127: Joint Use Facilities
A128: 382TS3.4540.008 | B128: 1070710 | C128: 2013-02-28 | D128: JAH BEPC-COMMON USE AGREEMENT | F128: -1680 | G128: Joint Use Facilities
A129: 382TS3.4540.008 | B129: 1073817 | C129: 2013-03-31 | D129: JAH BEPC-COMMON USE AGREEMENT | F129: -1680 | G129: Joint Use Facilities
A130: 382TS3.4540.008 | B130: 1077546 | C130: 2013-04-30 | D130: JAH BEPC-COMMON USE AGREEMENT | F130: -1680 | G130: Joint Use Facilities
A131: 382TS3.4540.008 | B131: 1080946 | C131: 2013-05-31 | D131: JAH BEPC-COMMON USE AGREEMENT | F131: -1680 | G131: Joint Use Facilities
A132: 382TS3.4540.008 | B132: 1084390 | C132: 2013-06-30 | D132: JAH BEPC-COMMON USE AGREEMENT | F132: -1680 | G132: Joint Use Facilities
A133: 382TS3.4540.008 | B133: 1088232 | C133: 2013-07-31 | D133: JAH BEPC-COMMON USE AGREEMENT | F133: -1680 | G133: Joint Use Facilities
A134: 410TS1.4540.008 | B134: 1051186 | C134: 2012-08-31 | D134: JAH BEPC-COMMON USE AGREEMENT | F134: -5266 | G134: Joint Use Facilities
A135: 410TS1.4540.008 | B135: 1054075 | C135: 2012-09-30 | D135: JAH BEPC-COMMON USE AGREEMENT | F135: -5266 | G135: Joint Use Facilities
A136: 410TS1.4540.008 | B136: 1057100 | C136: 2012-10-31 | D136: JAH BEPC-COMMON USE AGREEMENT | F136: -5266 | G136: Joint Use Facilities
A137: 410TS1.4540.008 | B137: 1059930 | C137: 2012-11-30 | D137: JAH BEPC-COMMON USE AGREEMENT | F137: -5266 | G137: Joint Use Facilities
A138: 410TS1.4540.008 | B138: 1063140 | C138: 2012-12-31 | D138: JAH BEPC-COMMON USE AGREEMENT | F138: -5266 | G138: Joint Use Facilities
A139: 410TS1.4540.008 | B139: 1067041 | C139: 2013-01-31 | D139: JAH BEPC-COMMON USE AGREEMENT | F139: -5266 | G139: Joint Use Facilities
A140: 410TS1.4540.008 | B140: 1070710 | C140: 2013-02-28 | D140: JAH BEPC-COMMON USE AGREEMENT | F140: -5266 | G140: Joint Use Facilities
A141: 410TS1.4540.008 | B141: 1073817 | C141: 2013-03-31 | D141: JAH BEPC-COMMON USE AGREEMENT | F141: -5266 | G141: Joint Use Facilities
A142: 410TS1.4540.008 | B142: 1077546 | C142: 2013-04-30 | D142: JAH BEPC-COMMON USE AGREEMENT | F142: -5266 | G142: Joint Use Facilities
A143: 410TS1.4540.008 | B143: 1080946 | C143: 2013-05-31 | D143: JAH BEPC-COMMON USE AGREEMENT | F143: -5266 | G143: Joint Use Facilities
A144: 410TS1.4540.008 | B144: 1084390 | C144: 2013-06-30 | D144: JAH BEPC-COMMON USE AGREEMENT | F144: -5266 | G144: Joint Use Facilities
A145: 410TS1.4540.008 | B145: 1088232 | C145: 2013-07-31 | D145: JAH BEPC-COMMON USE AGREEMENT | F145: -5266 | G145: Joint Use Facilities
A146: 421TS1.4540.008 | B146: 1051186 | C146: 2012-08-31 | D146: JAH BEPC-COMMON USE AGREEMENT | F146: -1034 | G146: Joint Use Facilities
A147: 421TS1.4540.008 | B147: 1054075 | C147: 2012-09-30 | D147: JAH BEPC-COMMON USE AGREEMENT | F147: -1034 | G147: Joint Use Facilities
A148: 421TS1.4540.008 | B148: 1057100 | C148: 2012-10-31 | D148: JAH BEPC-COMMON USE AGREEMENT | F148: -1034 | G148: Joint Use Facilities
A149: 421TS1.4540.008 | B149: 1059930 | C149: 2012-11-30 | D149: JAH BEPC-COMMON USE AGREEMENT | F149: -1034 | G149: Joint Use Facilities
A150: 421TS1.4540.008 | B150: 1063140 | C150: 2012-12-31 | D150: JAH BEPC-COMMON USE AGREEMENT | F150: -1034 | G150: Joint Use Facilities
A151: 421TS1.4540.008 | B151: 1067041 | C151: 2013-01-31 | D151: JAH BEPC-COMMON USE AGREEMENT | F151: -1034 | G151: Joint Use Facilities
A152: 421TS1.4540.008 | B152: 1070710 | C152: 2013-02-28 | D152: JAH BEPC-COMMON USE AGREEMENT | F152: -1034 | G152: Joint Use Facilities
A153: 421TS1.4540.008 | B153: 1073817 | C153: 2013-03-31 | D153: JAH BEPC-COMMON USE AGREEMENT | F153: -1034 | G153: Joint Use Facilities
A154: 421TS1.4540.008 | B154: 1077546 | C154: 2013-04-30 | D154: JAH BEPC-COMMON USE AGREEMENT | F154: -1034 | G154: Joint Use Facilities
A155: 421TS1.4540.008 | B155: 1080946 | C155: 2013-05-31 | D155: JAH BEPC-COMMON USE AGREEMENT | F155: -1034 | G155: Joint Use Facilities
A156: 421TS1.4540.008 | B156: 1084390 | C156: 2013-06-30 | D156: JAH BEPC-COMMON USE AGREEMENT | F156: -1034 | G156: Joint Use Facilities
A157: 421TS1.4540.008 | B157: 1088232 | C157: 2013-07-31 | D157: JAH BEPC-COMMON USE AGREEMENT | F157: -1034 | G157: Joint Use Facilities
A158: 432TS2.4540.008 | B158: 1051186 | C158: 2012-08-31 | D158: JAH BEPC-COMMON USE AGREEMENT | F158: -1148 | G158: Joint Use Facilities
A159: 432TS2.4540.008 | B159: 1054075 | C159: 2012-09-30 | D159: JAH BEPC-COMMON USE AGREEMENT | F159: -1148 | G159: Joint Use Facilities
A160: 432TS2.4540.008 | B160: 1057100 | C160: 2012-10-31 | D160: JAH BEPC-COMMON USE AGREEMENT | F160: -1148 | G160: Joint Use Facilities
A161: 432TS2.4540.008 | B161: 1059930 | C161: 2012-11-30 | D161: JAH BEPC-COMMON USE AGREEMENT | F161: -1148 | G161: Joint Use Facilities
A162: 432TS2.4540.008 | B162: 1063140 | C162: 2012-12-31 | D162: JAH BEPC-COMMON USE AGREEMENT | F162: -1148 | G162: Joint Use Facilities
A163: 432TS2.4540.008 | B163: 1067041 | C163: 2013-01-31 | D163: JAH BEPC-COMMON USE AGREEMENT | F163: -1148 | G163: Joint Use Facilities
A164: 432TS2.4540.008 | B164: 1070710 | C164: 2013-02-28 | D164: JAH BEPC-COMMON USE AGREEMENT | F164: -1148 | G164: Joint Use Facilities
A165: 432TS2.4540.008 | B165: 1073817 | C165: 2013-03-31 | D165: JAH BEPC-COMMON USE AGREEMENT | F165: -1148 | G165: Joint Use Facilities
A166: 432TS2.4540.008 | B166: 1077546 | C166: 2013-04-30 | D166: JAH BEPC-COMMON USE AGREEMENT | F166: -1148 | G166: Joint Use Facilities
A167: 432TS2.4540.008 | B167: 1080946 | C167: 2013-05-31 | D167: JAH BEPC-COMMON USE AGREEMENT | F167: -1148 | G167: Joint Use Facilities
A168: 432TS2.4540.008 | B168: 1084390 | C168: 2013-06-30 | D168: JAH BEPC-COMMON USE AGREEMENT | F168: -1148 | G168: Joint Use Facilities
A169: 432TS2.4540.008 | B169: 1088232 | C169: 2013-07-31 | D169: JAH BEPC-COMMON USE AGREEMENT | F169: -1148 | G169: Joint Use Facilities
A170: 446TS1.4540.008 | B170: 1051186 | C170: 2012-08-31 | D170: JAH BEPC-COMMON USE AGREEMENT | F170: -248 | G170: Joint Use Facilities
A171: 446TS1.4540.008 | B171: 1054075 | C171: 2012-09-30 | D171: JAH BEPC-COMMON USE AGREEMENT | F171: -248 | G171: Joint Use Facilities
A172: 446TS1.4540.008 | B172: 1057100 | C172: 2012-10-31 | D172: JAH BEPC-COMMON USE AGREEMENT | F172: -248 | G172: Joint Use Facilities
A173: 446TS1.4540.008 | B173: 1059930 | C173: 2012-11-30 | D173: JAH BEPC-COMMON USE AGREEMENT | F173: -248 | G173: Joint Use Facilities
A174: 446TS1.4540.008 | B174: 1063140 | C174: 2012-12-31 | D174: JAH BEPC-COMMON USE AGREEMENT | F174: -248 | G174: Joint Use Facilities
A175: 446TS1.4540.008 | B175: 1067041 | C175: 2013-01-31 | D175: JAH BEPC-COMMON USE AGREEMENT | F175: -248 | G175: Joint Use Facilities
A176: 446TS1.4540.008 | B176: 1070710 | C176: 2013-02-28 | D176: JAH BEPC-COMMON USE AGREEMENT | F176: -248 | G176: Joint Use Facilities
A177: 446TS1.4540.008 | B177: 1073817 | C177: 2013-03-31 | D177: JAH BEPC-COMMON USE AGREEMENT | F177: -248 | G177: Joint Use Facilities
A178: 446TS1.4540.008 | B178: 1077546 | C178: 2013-04-30 | D178: JAH BEPC-COMMON USE AGREEMENT | F178: -248 | G178: Joint Use Facilities
A179: 446TS1.4540.008 | B179: 1080946 | C179: 2013-05-31 | D179: JAH BEPC-COMMON USE AGREEMENT | F179: -248 | G179: Joint Use Facilities
A180: 446TS1.4540.008 | B180: 1084390 | C180: 2013-06-30 | D180: JAH BEPC-COMMON USE AGREEMENT | F180: -248 | G180: Joint Use Facilities
A181: 446TS1.4540.008 | B181: 1088232 | C181: 2013-07-31 | D181: JAH BEPC-COMMON USE AGREEMENT | F181: -248 | G181: Joint Use Facilities
A182: 458TS2.4540.008 | B182: 1051186 | C182: 2012-08-31 | D182: JAH BEPC-COMMON USE AGREEMENT | F182: -4142 | G182: Joint Use Facilities
A183: 458TS2.4540.008 | B183: 1054075 | C183: 2012-09-30 | D183: JAH BEPC-COMMON USE AGREEMENT | F183: -4142 | G183: Joint Use Facilities
A184: 458TS2.4540.008 | B184: 1057100 | C184: 2012-10-31 | D184: JAH BEPC-COMMON USE AGREEMENT | F184: -4142 | G184: Joint Use Facilities
A185: 458TS2.4540.008 | B185: 1059930 | C185: 2012-11-30 | D185: JAH BEPC-COMMON USE AGREEMENT | F185: -4142 | G185: Joint Use Facilities
A186: 458TS2.4540.008 | B186: 1063140 | C186: 2012-12-31 | D186: JAH BEPC-COMMON USE AGREEMENT | F186: -4142 | G186: Joint Use Facilities
A187: 458TS2.4540.008 | B187: 1067041 | C187: 2013-01-31 | D187: JAH BEPC-COMMON USE AGREEMENT | F187: -4142 | G187: Joint Use Facilities
A188: 458TS2.4540.008 | B188: 1070710 | C188: 2013-02-28 | D188: JAH BEPC-COMMON USE AGREEMENT | F188: -4142 | G188: Joint Use Facilities
A189: 458TS2.4540.008 | B189: 1073817 | C189: 2013-03-31 | D189: JAH BEPC-COMMON USE AGREEMENT | F189: -4142 | G189: Joint Use Facilities
A190: 458TS2.4540.008 | B190: 1077546 | C190: 2013-04-30 | D190: JAH BEPC-COMMON USE AGREEMENT | F190: -4142 | G190: Joint Use Facilities
A191: 458TS2.4540.008 | B191: 1080946 | C191: 2013-05-31 | D191: JAH BEPC-COMMON USE AGREEMENT | F191: -4142 | G191: Joint Use Facilities
A192: 458TS2.4540.008 | B192: 1084390 | C192: 2013-06-30 | D192: JAH BEPC-COMMON USE AGREEMENT | F192: -4142 | G192: Joint Use Facilities
A193: 458TS2.4540.008 | B193: 1088232 | C193: 2013-07-31 | D193: JAH BEPC-COMMON USE AGREEMENT | F193: -4142 | G193: Joint Use Facilities
A194: 473TS1.4540.008 | B194: 1051186 | C194: 2012-08-31 | D194: JAH BEPC-COMMON USE AGREEMENT | F194: -249 | G194: Joint Use Facilities
A195: 473TS1.4540.008 | B195: 1054075 | C195: 2012-09-30 | D195: JAH BEPC-COMMON USE AGREEMENT | F195: -249 | G195: Joint Use Facilities
A196: 473TS1.4540.008 | B196: 1057100 | C196: 2012-10-31 | D196: JAH BEPC-COMMON USE AGREEMENT | F196: -249 | G196: Joint Use Facilities
A197: 473TS1.4540.008 | B197: 1059930 | C197: 2012-11-30 | D197: JAH BEPC-COMMON USE AGREEMENT | F197: -249 | G197: Joint Use Facilities
A198: 473TS1.4540.008 | B198: 1063140 | C198: 2012-12-31 | D198: JAH BEPC-COMMON USE AGREEMENT | F198: -249 | G198: Joint Use Facilities
A199: 473TS1.4540.008 | B199: 1067041 | C199: 2013-01-31 | D199: JAH BEPC-COMMON USE AGREEMENT | F199: -249 | G199: Joint Use Facilities
A200: 473TS1.4540.008 | B200: 1070710 | C200: 2013-02-28 | D200: JAH BEPC-COMMON USE AGREEMENT | F200: -249 | G200: Joint Use Facilities
... 442 more rows

Sheet 456.1
A1: Transmission Charges Workpaper
A2: Attachment O Page 4 of 5
D5: Projected
D6: 2014
A7: 35 | B7: a. Transmission charges for all transmission transactions 1/ | D7: =+D9+D10+D20 -> 2978123
A8: 36 | B8: b. Transmission charges for all transmission transactions included in Divisor on Page 1 | D8: 0
A9: 36a | B9: c. Transmission charges associated with Schedule 26 (Note X) 2/ | D9: 1798253
A10: 36b | B10: d. Transmission charges associated with Schedule 26-A (Note DD) 3/ | D10: 827949
A11: 37 | B11: Total of (a)-(b)-(c)-(d) | D11: =+D7-D8-D9-D10 -> 351921
A14: 1/ Reflects transmission revenues from WAPA, Basin, the Attachment GG revenue requirement and the Attachment MM revenue requirement.
D16: 3 Yr.
D17: Average | F17: 2012 | H17: 2011 | J17: 2010
B18: WAPA | D18: =ROUND(AVERAGE(F18:J18),0) -> 246243 | F18: 240642 | H18: 245560 | J18: 252527
B19: Basin | D19: =ROUND(AVERAGE(F19:J19),0) -> 105678 | F19: 105678 | H19: 105678 | J19: 105678
D20: =SUM(D18:D19) -> 351921 | F20: =SUM(F18:F19) -> 346320 | H20: =SUM(H18:H19) -> 351238 | J20: =SUM(J18:J19) -> 358205
A22: 2/ Reflects Montana-Dakota's projected 2014 revenue requirement from Attachment GG.
A23: 3/ Reflects Montana-Dakota's projected 2014 revenue requirement from Attachment MM.

Sheet Attachment GG
A1: Montana-Dakota Utilities Co.
A2: Attachment GG
B5: 2013-12-31 | C5: 2014-01-31 | D5: 2014-02-28 | E5: 2014-03-31 | F5: 2014-04-30 | G5: 2014-05-31 | H5: 2014-06-30 | I5: 2014-07-31 | J5: 2014-08-31 | K5: 2014-09-30 | L5: 2014-10-31 | M5: 2014-11-30 | N5: 2014-12-31 | O5: 13 Mo. Avg
A7: Plant in Service | B7: 8329745.63 | C7: 8329745.63 | D7: 8329745.63 | E7: 8329745.63 | F7: 8329745.63 | G7: 8329745.63 | H7: 8329745.63 | I7: 8329745.63 | J7: 8329745.63 | K7: 8329745.63 | L7: 8329745.63 | M7: 8329745.63 | N7: 8329745.63 | O7: =AVERAGE(B7:N7) -> 8329745.63
A8: Accumulative Reserve | B8: 369582.8123 | C8: 383480.8676 | D8: 397378.9229 | E8: 411276.9782 | F8: 425175.0335 | G8: 439073.0888 | H8: 452971.1441 | I8: 466869.1994 | J8: 480767.2546 | K8: 494665.3099 | L8: 508563.3652 | M8: 522461.4205 | N8: 536359.4758 | O8: =AVERAGE(B8:N8) -> 452971.1441
A9: Total | B9: =+B7-B8 -> 7960162.818 | C9: 7946264.762 | D9: 7932366.707 | E9: 7918468.652 | F9: 7904570.597 | G9: 7890672.541 | H9: 7876774.486 | I9: 7862876.431 | J9: 7848978.375 | K9: 7835080.32 | L9: 7821182.265 | M9: 7807284.209 | N9: 7793386.154 | O9: =AVERAGE(B9:N9) -> 7876774.486
